Workbook

Sheet محمد
A1: محمد | H1: محمد
C2: مبلغ
A3: =SUM(A5:A990) -> 12254 | B3: =SUM(B5:B989) -> 2500 | C3: =SUM(A3-B3) -> 9754 | F3: الهاتف | G3: 218910078855 | H3: ===============
A4: لنا | B4: له | C4: بيان | D4: نوع | E4: عدد | F4: سعر | G4: التاريخ | H4: =IF(I4>=0,"لنا","لكم") -> لنا | I4: =محمد!J3 -> 0 | J4: دينار
A5: =SUM(E5*F5) -> 6534 | C5: محمد عبد الكريم | D5: بنطال | E5: 66 | F5: 99 | H5: 🔘🔘🔘🔘🔘🔘
A6: =SUM(E6*F6) -> 5720 | C6: بشير عبدالله حمد | D6: كنزة | E6: 88 | F6: 65 | I6: =TODAY() -> 2022-03-09
A7: 0 | B7: 2500 | C7: دفعة | E7: 0 | F7: 1
A8: 0 | C8: ترصيد 6049 | E8: 0 | F8: 1

Sheet صالح
A1: صالح | H1: صالح
C2: مبلغ
A3: =SUM(A5:A990) -> 19549 | B3: =SUM(B5:B989) -> 2500 | C3: =SUM(A3-B3) -> 17049 | F3: الهاتف | G3: 218910078855 | H3: ===============
A4: لنا | B4: له | C4: بيان | D4: نوع | E4: عدد | F4: سعر | G4: التاريخ | H4: =IF(I4>=0,"لنا","لكم") -> لنا | I4: =صالح!J3 -> 0 | J4: دينار
A5: =SUM(E5*F5) -> 6534 | C5: محمد عبد الكريم | D5: بنطال | E5: 66 | F5: 99 | H5: 🔘🔘🔘🔘🔘🔘
A6: =SUM(E6*F6) -> 2015 | C6: بشير عبدالله حمد | D6: كنزة | E6: 31 | F6: 65 | I6: =TODAY() -> 2022-03-09
A7: 0 | B7: 2500 | C7: دفعة | E7: 0 | F7: 0
A8: 0 | E8: 0 | F8: 0
A9: 3080 | C9: ننتالبي | E9: 7 | F9: 440
A10: 7920 | C10: اااا | E10: 12 | F10: 660
C11: ترصيد 17049

Sheet سعيد
A1: سعيد | H1: سعيد
C2: مبلغ
A3: =SUM(A5:A990) -> 8549 | B3: =SUM(B5:B989) -> 2500 | C3: =SUM(A3-B3) -> 6049 | F3: الهاتف | G3: 218910078855 | H3: ===============
A4: لنا | B4: له | C4: بيان | D4: نوع | E4: عدد | F4: سعر | G4: التاريخ | H4: =IF(I4>=0,"لنا","لكم") -> لنا | I4: =سعيد!J3 -> 0 | J4: دينار
A5: =SUM(E5*F5) -> 6534 | C5: محمد عبد الكريم | D5: بنطال | E5: 66 | F5: 99 | H5: 🔘🔘🔘🔘🔘🔘
A6: =SUM(E6*F6) -> 2015 | C6: بشير عبدالله حمد | D6: كنزة | E6: 31 | F6: 65 | I6: =TODAY() -> 2022-03-09
A7: 0 | B7: 2500 | C7: دفعة | E7: 0 | F7: 1
A8: 0 | C8: ترصيد 6049 | E8: 0 | F8: 1
